lending/lending_fUSD_20250920
["ID","MTS","AMOUNT","RATE_DAILY","PERIOD"]
[386584882,1758411071167,-1261.46,0.00022737,2]
[386584883,1758411071177,-400.0,0.00022737,2]
[386584884,1758411071187,-400.0,0.00022737,2]
[386584885,1758411071196,-403.88,0.00022737,2]
[386584886,1758411071206,-400.0,0.00022737,2]
[386584887,1758411071215,-400.0,0.00022737,2]
[386584888,1758411071225,-400.0,0.00022737,2]
[386584889,1758411071234,-400.0,0.00022737,2]
[386584890,1758411071244,-579.23,0.00022737,2]
[386584891,1758411071253,-2517.53,0.00022737,2]
[386584892,1758411071263,-400.0,0.00022737,2]
[386584893,1758411071272,-1151.73,0.00022737,2]
[386584894,1758411071282,-400.0,0.00022737,2]
[386584895,1758411071291,-400.0,0.00022737,2]
[386584896,1758411071300,-1217.05,0.00022737,2]
[386584897,1758411071311,-1634.57,0.00022737,2]
[386584898,1758411071320,-2339.4,0.00022737,2]
[386584899,1758411071329,-1609.71,0.00022737,2]
[386584900,1758411071339,-1594.78,0.00022737,2]
[386584901,1758411071348,-566.49,0.00022737,2]
[386584902,1758411071358,-1488.14,0.00022737,2]
[386584903,1758411071367,-400.0,0.00022737,2]
[386584904,1758411071377,-1427.2,0.00022737,2]
[386584905,1758411071386,-2965.38,0.00022737,2]
[386584906,1758411071395,-1122.29,0.00022737,2]
[386584907,1758411071405,-1612.07,0.00022737,2]
[386584908,1758411071414,-400.0,0.00022737,2]
[386584909,1758411071423,-1554.13,0.00022737,2]
[386584910,1758411071433,-1889.22,0.00022737,2]
[386584911,1758411071442,-422.21,0.00022737,2]
[386584912,1758411071452,-1626.96,0.00022737,2]
[386584913,1758411071465,-758.73,0.00022737,2]
[386584914,1758411071474,-2637.77,0.00022737,2]
[386584915,1758411071484,-2440.55,0.00022737,2]
[386584916,1758411071494,-1073.76,0.00022737,2]
[386584917,1758411071503,-400.0,0.00022737,2]
[386584918,1758411071513,-1463.93,0.00022737,2]
[386584919,1758411071523,-400.0,0.00022737,2]
[386584920,1758411071532,-739.58,0.00022737,2]
[386584921,1758411071542,-4758.73,0.00022737,2]
[386584922,1758411071552,-163.243635,0.00022737,2]
[386584923,1758411071562,-165.650782,0.00022737,2]
[386584924,1758411071571,-155.784549,0.00022737,2]
[386584925,1758411071581,-167.985065,0.00022737,2]
[386584926,1758411071590,-1895.35,0.00022737,2]
[386584927,1758411071599,-400.0,0.00022737,2]
[386584928,1758411071609,-1309.63,0.00022737,2]
[386584929,1758411071840,-460.55,0.00022737,2]
[386584930,1758411071850,-13160.01,0.00022737,2]
[386584931,1758411071860,-1213.84,0.00022737,2]
[386584932,1758411071870,-1507.36,0.00022737,2]
[386584933,1758411071880,-1931.19,0.00022737,2]
[386584934,1758411071889,-458.97,0.00022737,2]
[386584935,1758411071898,-2177.8,0.00022737,2]
[386584936,1758411071908,-1567.49,0.00022737,2]
[386584937,1758411071917,-400.0,0.00022737,2]
[386584938,1758411071927,-400.0,0.00022737,2]
[386584939,1758411071937,-400.0,0.00022737,2]
[386584940,1758411071946,-854.0,0.00022737,2]
[386584941,1758411071955,-400.0,0.00022737,2]
[386584942,1758411071965,-1619.08,0.00022737,2]
[386584943,1758411071975,-407.73165509,0.00022737,2]
[386584944,1758411071984,-400.0,0.00022737,2]
[386584945,1758411071994,-400.0,0.00022738,2]
[386584946,1758411072003,-854.19,0.00022738,2]
[386584947,1758411072013,-400.0,0.00022738,2]
[386584948,1758411072023,-432.06,0.00022738,2]
[386584949,1758411072033,-400.0,0.00022738,2]
[386584950,1758411072042,-400.0,0.00022738,2]
[386584951,1758411072052,-400.0,0.00022738,2]
[386584952,1758411072061,-400.0,0.00022738,2]
[386584953,1758411072071,-400.0,0.00022738,2]
[386584954,1758411072081,-400.0,0.00022738,2]
[386584955,1758411072091,-400.0,0.00022738,2]
[386584956,1758411072100,-985.91,0.00022738,2]
[386584957,1758411072109,-656.77,0.00022738,2]
[386584958,1758411072123,-400.0,0.00022738,2]
[386584959,1758411072133,-400.0,0.00022738,2]
[386584960,1758411072142,-721.71,0.00022738,2]
[386584961,1758411072152,-531.57,0.00022738,2]
[386584962,1758411072162,-549.75,0.00022738,2]
[386584963,1758411072172,-400.0,0.00022738,2]
[386584964,1758411072182,-400.0,0.00022738,2]
[386584965,1758411072193,-571.16,0.00022738,2]
[386584966,1758411072203,-400.0,0.00022738,2]
[386584967,1758411072212,-400.0,0.00022738,2]
[386584968,1758411072222,-528.21,0.00022738,2]
[386584969,1758411072231,-491.36,0.00022738,2]
[386584970,1758411072241,-400.0,0.00022738,2]
[386584971,1758411072251,-440.54,0.00022738,2]
[386584972,1758411072262,-400.0,0.00022738,2]
[386584973,1758411072271,-400.0,0.00022738,2]
[386584974,1758411072282,-400.0,0.00022738,2]
[386584975,1758411072292,-400.0,0.00022738,2]
[386584976,1758411072302,-483.57,0.00022738,2]
[386584977,1758411072313,-400.0,0.00022738,2]
[386584978,1758411072323,-400.0,0.00022738,2]
[386584979,1758411072333,-400.0,0.00022738,2]
[386584980,1758411072343,-930.44,0.00022738,2]
[386584981,1758411072354,-400.0,0.00022738,2]
[386584982,1758411072364,-400.0,0.00022738,2]
[386584983,1758411072375,-400.0,0.00022738,2]
[386584984,1758411072385,-400.0,0.00022738,2]
[386584985,1758411072395,-400.0,0.00022738,2]
[386584986,1758411072406,-545.4,0.00022738,2]
[386584987,1758411072416,-527.24,0.00022738,2]
[386584988,1758411072425,-400.0,0.00022738,2]
[386584989,1758411072435,-1149.03,0.00022738,2]
[386584990,1758411072444,-400.0,0.00022738,2]
[386584991,1758411072453,-400.0,0.00022738,2]
[386584992,1758411072463,-400.0,0.00022738,2]
[386584993,1758411072473,-400.0,0.00022738,2]
[386584994,1758411072483,-400.0,0.00022738,2]
[386584995,1758411072492,-400.0,0.00022738,2]
[386584996,1758411072502,-400.0,0.00022738,2]
[386584997,1758411072514,-524.41,0.00022738,2]
[386584998,1758411072523,-418.18,0.00022738,2]
[386584999,1758411072533,-400.0,0.00022738,2]
[386585000,1758411072543,-400.0,0.00022738,2]
[386585001,1758411072552,-400.0,0.00022738,2]
[386585002,1758411072562,-400.0,0.00022738,2]
[386585003,1758411072571,-441.97,0.00022738,2]
[386585004,1758411072581,-400.0,0.00022738,2]
[386585005,1758411072591,-470.71,0.00022738,2]
[386585006,1758411072600,-400.0,0.00022738,2]
[386585007,1758411072610,-878.55,0.00022738,2]
[386585008,1758411072619,-681.86,0.00022738,2]
[386585009,1758411072629,-400.0,0.00022738,2]
[386585010,1758411072638,-480.84,0.00022738,2]
[386585011,1758411072648,-594.33,0.00022738,2]
[386585012,1758411072657,-1183.28,0.00022738,2]
[386585013,1758411072667,-1053.83,0.00022738,2]
[386585014,1758411072677,-400.0,0.00022738,2]
[386585015,1758411072686,-496.62,0.00022738,2]
[386585016,1758411072697,-455.21,0.00022738,2]
[386585017,1758411072706,-564.11,0.00022738,2]
[386585018,1758411072716,-645.49,0.00022738,2]
[386585019,1758411072726,-598.96,0.00022738,2]
[386585020,1758411072736,-400.0,0.00022738,2]
[386585021,1758411072745,-400.0,0.00022738,2]
[386585022,1758411072755,-417.74,0.00022738,2]
[386585023,1758411072766,-400.0,0.00022738,2]
[386585024,1758411072775,-537.04,0.00022738,2]
[386585025,1758411072785,-400.0,0.00022738,2]
[386585026,1758411072794,-403.86,0.00022738,2]
[386585027,1758411072804,-400.0,0.00022738,2]
[386585028,1758411072813,-439.97,0.00022738,2]
[386585029,1758411072823,-400.0,0.00022738,2]
[386585030,1758411072833,-400.0,0.00022738,2]
[386585031,1758411072843,-400.0,0.00022738,2]
[386585032,1758411072852,-552.39,0.00022738,2]
[386585033,1758411072862,-400.0,0.00022738,2]
[386585034,1758411072871,-400.0,0.00022738,2]
[386585035,1758411072880,-400.0,0.00022738,2]
[386585036,1758411072890,-400.0,0.00022738,2]
[386585037,1758411072900,-400.0,0.00022738,2]
[386585038,1758411072910,-400.0,0.00022738,2]
[386585039,1758411072919,-400.0,0.00022738,2]
[386585040,1758411072929,-400.0,0.00022738,2]
[386585041,1758411072940,-430.41532608,0.00022738,2]
[386585042,1758411072949,-400.0,0.00022738,2]
[386585043,1758411072959,-500.06,0.00022738,2]
[386585044,1758411072969,-400.0,0.00022738,2]
[386585045,1758411072979,-400.0,0.00022738,2]
[386585046,1758411072988,-400.0,0.00022738,2]
[386585047,1758411072998,-472.63348072,0.00022738,2]
[386585048,1758411073008,-400.0,0.00022738,2]
[386585049,1758411073018,-400.0,0.00022738,2]
[386585050,1758411073028,-400.0,0.00022738,2]
[386585051,1758411073037,-400.0,0.00022738,2]
[386585052,1758411073047,-469.04,0.00022738,2]
[386585053,1758411073057,-400.0,0.00022738,2]
[386585054,1758411073067,-400.0,0.00022738,2]
[386585055,1758411073076,-530.59,0.00022738,2]
[386585056,1758411073086,-498.67,0.00022738,2]
[386585057,1758411073096,-400.0,0.00022738,2]
[386585058,1758411073106,-980.36,0.00022738,2]
[386585059,1758411073117,-400.0,0.00022738,2]
[386585060,1758411073128,-400.0,0.00022738,2]
[386585061,1758411073138,-400.0,0.00022738,2]
[386585062,1758411073147,-400.0,0.00022738,2]
[386585063,1758411073157,-400.0,0.00022738,2]
[386585064,1758411073166,-400.0,0.00022738,2]
[386585065,1758411073176,-151.0,0.00022738,7]
[386585066,1758411073186,-151.0,0.00022738,7]
[386585067,1758411073195,-400.0,0.00022738,2]
[386585068,1758411073205,-408.06363959,0.00022738,2]
[386585069,1758411073214,-419.91,0.00022738,2]
[386585070,1758411073224,-400.0,0.00022738,2]
[386585071,1758411073234,-400.0,0.00022738,2]
[386585072,1758411073244,-774.81,0.00022738,2]
[386585073,1758411073254,-661.8,0.00022738,2]
[386585074,1758411073264,-400.0,0.00022738,2]
[386585075,1758411073274,-400.0,0.00022738,2]
[386585076,1758411073284,-400.0,0.00022738,2]
[386585077,1758411073296,-400.0,0.00022738,2]
[386585078,1758411073308,-400.0,0.00022738,2]
[386585079,1758411073318,-457.64,0.00022738,2]
[386585080,1758411073329,-400.0,0.00022738,2]
[386585081,1758411073339,-400.0,0.00022738,2]
[386585082,1758411073352,-400.0,0.00022738,2]
[386585083,1758411073363,-400.0,0.00022738,2]
[386585084,1758411073372,-507.99,0.00022738,2]
[386585085,1758411073381,-400.0,0.00022738,2]
[386585086,1758411073391,-400.0,0.00022738,2]
[386585087,1758411073400,-400.0,0.00022738,2]
[386585088,1758411073409,-400.0,0.00022738,2]
[386585089,1758411073419,-442.9,0.00022738,2]
[386585090,1758411073429,-400.0,0.00022738,2]
[386585091,1758411073438,-400.0,0.00022738,2]
[386585092,1758411073447,-819.83,0.00022738,2]
[386585093,1758411073458,-400.0,0.00022738,2]
[386585094,1758411073468,-400.0,0.00022738,2]
[386585095,1758411073479,-400.0,0.00022738,2]
[386585096,1758411073490,-550.43,0.00022738,2]
[386585097,1758411073500,-400.0,0.00022738,2]
[386585098,1758411073510,-400.0,0.00022738,2]
[386585099,1758411073519,-1180.28,0.00022738,2]
[386585100,1758411073529,-400.0,0.00022738,2]
[386585101,1758411073538,-400.0,0.00022738,2]
[386585102,1758411073549,-489.16,0.00022738,2]
[386585103,1758411073558,-400.0,0.00022738,2]
[386585104,1758411073568,-717.51,0.00022738,2]
[386585105,1758411073579,-662.56,0.00022738,2]
[386585106,1758411073590,-400.0,0.00022738,2]
[386585107,1758411073602,-400.0,0.00022738,2]
[386585108,1758411073612,-620.67,0.00022738,2]
[386585109,1758411073622,-400.0,0.00022738,2]
[386585110,1758411073632,-400.0,0.00022738,2]
[386585111,1758411073642,-400.0,0.00022738,2]
[386585112,1758411073652,-1448.23,0.00022738,2]
[386585113,1758411073663,-400.0,0.00022738,2]
[386585114,1758411073673,-400.0,0.00022738,2]
[386585115,1758411073685,-400.0,0.00022738,2]
[386585116,1758411073695,-400.0,0.00022738,2]
[386585117,1758411073705,-400.0,0.00022738,2]
[386585118,1758411073715,-494.35,0.00022738,2]
[386585119,1758411073724,-400.0,0.00022738,2]
[386585120,1758411073733,-400.0,0.00022738,2]
[386585121,1758411073743,-400.0,0.00022738,2]
[386585122,1758411073758,-506.29,0.00022738,2]
[386585123,1758411073768,-506.29,0.00022738,2]
[386585124,1758411073777,-506.29,0.00022738,2]
[386585125,1758411073787,-506.29,0.00022738,2]
[386585126,1758411073796,-506.29,0.00022738,2]
[386585127,1758411073806,-503.56,0.00022738,2]
[386585128,1758411073815,-506.29,0.00022738,2]
[386585129,1758411073825,-400.0,0.00022738,2]
[386585130,1758411073836,-1018.85,0.00022738,2]
[386585131,1758411073846,-400.0,0.00022738,2]
[386585132,1758411073856,-400.0,0.00022738,2]
[386585133,1758411073866,-400.0,0.00022738,2]
[386585134,1758411073876,-400.0,0.00022738,2]
[386585135,1758411073885,-1177.29,0.00022738,2]
[386585136,1758411073895,-400.0,0.00022738,2]
[386585137,1758411073905,-400.0,0.00022738,2]
[386585138,1758411073915,-703.39,0.00022738,2]
[386585139,1758411073925,-491.97,0.00022738,2]
[386585140,1758411073934,-400.0,0.00022738,2]
[386585141,1758411073943,-400.0,0.00022738,2]
[386585142,1758411073953,-560.72,0.00022738,2]
[386585143,1758411073962,-954.57,0.00022738,2]
[386585144,1758411073971,-400.0,0.00022738,2]
[386585145,1758411073981,-475.33,0.00022738,2]
[386585146,1758411073992,-400.0,0.00022738,2]
[386585147,1758411074002,-400.0,0.00022738,2]
[386585148,1758411074012,-400.0,0.00022738,2]
[386585149,1758411074021,-400.0,0.00022738,2]
[386585150,1758411074031,-488.85,0.00022738,2]
[386585151,1758411074039,-400.0,0.00022738,2]
[386585152,1758411074049,-545.4,0.00022738,2]
[386585153,1758411074058,-400.0,0.00022738,2]
[386585154,1758411074068,-400.0,0.00022738,2]
[386585155,1758411074077,-400.0,0.00022738,2]
[386585156,1758411074087,-483.7,0.00022738,2]
[386585157,1758411074096,-424.28,0.00022738,2]
[386585158,1758411074105,-400.0,0.00022738,2]
[386585159,1758411074117,-400.0,0.00022738,2]
[386585160,1758411074126,-400.0,0.00022738,2]
[386585161,1758411074136,-1186.43,0.00022738,2]
[386585162,1758411074146,-400.0,0.00022738,2]
[386585163,1758411074155,-428.03,0.00022738,2]
[386585164,1758411074165,-400.0,0.00022738,2]
[386585165,1758411074174,-400.0,0.00022738,2]
[386585166,1758411074183,-400.0,0.00022738,2]
[386585167,1758411074195,-400.0,0.00022738,2]
[386585168,1758411074204,-400.0,0.00022738,2]
[386585169,1758411074214,-400.0,0.00022738,2]
[386585170,1758411074226,-400.0,0.00022738,2]
[386585171,1758411074236,-549.99,0.00022738,2]
[386585172,1758411074247,-606.93,0.00022738,2]
[386585173,1758411074258,-400.0,0.00022738,2]
[386585174,1758411074267,-400.0,0.00022738,2]
[386585175,1758411074276,-400.0,0.00022738,2]
[386585176,1758411074378,-583.37,0.00022738,2]
[386585177,1758411074390,-400.0,0.00022738,2]
[386585178,1758411074400,-578.4,0.00022738,2]
[386585179,1758411074410,-400.0,0.00022738,2]
[386585180,1758411074421,-400.0,0.00022738,2]
[386585181,1758411074432,-400.0,0.00022738,2]
[386585182,1758411074442,-400.0,0.00022738,2]
[386585183,1758411074452,-1000.0,0.00022738,2]
[386585184,1758411074462,-400.0,0.00022738,2]
[386585185,1758411074471,-400.0,0.00022738,2]
[386585186,1758411074482,-568.23,0.00022738,2]
[386585187,1758411074491,-1276.42,0.00022738,2]
[386585188,1758411074505,-400.0,0.00022738,2]
[386585189,1758411074515,-400.0,0.00022738,2]
[386585190,1758411074524,-400.0,0.00022738,2]
[386585191,1758411074534,-400.0,0.00022738,2]
[386585192,1758411074546,-400.0,0.00022738,2]
[386585193,1758411074557,-500.0,0.00022738,2]
[386585194,1758411074567,-400.0,0.00022738,2]
[386585195,1758411074577,-400.0,0.00022738,2]
[386585196,1758411074586,-400.0,0.00022738,2]
[386585197,1758411074598,-400.0,0.00022738,2]
[386585198,1758411074609,-400.0,0.00022738,2]
[386585199,1758411074618,-400.0,0.00022738,2]
[386585200,1758411074628,-400.0,0.00022738,2]
[386585201,1758411074639,-400.0,0.00022738,2]
[386585202,1758411074651,-151.0,0.00022738,7]
[386585203,1758411074662,-400.0,0.00022738,2]
[386585204,1758411074672,-400.0,0.00022738,2]
[386585205,1758411074682,-400.0,0.00022738,2]
[386585206,1758411074694,-1011.08,0.00022738,2]
[386585207,1758411074703,-613.51,0.00022738,2]
[386585208,1758411074712,-400.0,0.00022738,2]
[386585209,1758411074722,-400.0,0.00022738,2]
[386585210,1758411074731,-472.79,0.00022738,2]
[386585211,1758411074741,-400.0,0.00022738,2]
[386585212,1758411074750,-400.0,0.00022738,2]
[386585213,1758411074759,-400.0,0.00022738,2]
[386585214,1758411074769,-275.26744597,0.00022738,2]
[386585215,1758411074778,-400.0,0.00022738,2]
[386585216,1758411074788,-400.0,0.00022738,2]
[386585217,1758411074797,-151.0,0.00022738,7]
[386585218,1758411074807,-151.0,0.00022738,7]
[386585219,1758411074817,-400.0,0.00022738,2]
[386585220,1758411074827,-400.0,0.00022738,2]
[386585221,1758411074837,-400.0,0.00022738,2]
[386585222,1758411074846,-431.21,0.00022738,2]
[386585223,1758411074856,-400.0,0.00022738,2]
[386585224,1758411074865,-520.58,0.00022738,2]
[386585225,1758411074874,-400.0,0.00022738,2]
[386585226,1758411074884,-400.0,0.00022738,2]
[386585227,1758411074893,-400.0,0.00022738,2]
[386585228,1758411074902,-400.0,0.00022738,2]
[386585229,1758411074911,-151.0,0.00022738,7]
[386585230,1758411074921,-400.0,0.00022738,2]
[386585231,1758411074930,-400.0,0.00022738,2]
[386585232,1758411074940,-400.0,0.00022738,2]
[386585233,1758411074949,-1232.86,0.00022738,2]
[386585234,1758411074959,-400.0,0.00022738,2]
[386585235,1758411074968,-400.0,0.00022738,2]
[386585236,1758411074977,-805.27,0.00022738,2]
[386585237,1758411074987,-400.0,0.00022738,2]
[386585238,1758411074997,-400.0,0.00022738,2]
[386585239,1758411075007,-400.0,0.00022738,2]
[386585240,1758411075016,-400.0,0.00022738,2]
[386585241,1758411075028,-785.66,0.00022738,2]
[386585242,1758411075039,-525.84,0.00022738,2]
[386585243,1758411075050,-400.0,0.00022738,2]
[386585244,1758411075063,-586.0,0.00022738,2]
[386585245,1758411075073,-400.0,0.00022738,2]
[386585246,1758411075084,-400.0,0.00022738,2]
[386585247,1758411075094,-400.0,0.00022738,2]
[386585248,1758411075103,-400.0,0.00022738,2]
[386585249,1758411075113,-400.0,0.00022738,2]
[386585250,1758411075124,-400.0,0.00022738,2]
[386585251,1758411075134,-400.0,0.00022738,2]
[386585252,1758411075143,-400.0,0.00022738,2]
[386585253,1758411075153,-400.0,0.00022738,2]
[386585254,1758411075164,-417.45,0.00022738,2]
[386585255,1758411075174,-400.0,0.00022738,2]
[386585256,1758411075183,-400.0,0.00022738,2]
[386585257,1758411075192,-400.0,0.00022738,2]
[386585258,1758411075201,-400.0,0.00022738,2]
[386585259,1758411075210,-408.23280664,0.00022738,2]
[386585260,1758411075221,-400.0,0.00022738,2]
[386585261,1758411075233,-489.15031283,0.00022738,2]
[386585262,1758411075243,-400.0,0.00022738,2]
[386585263,1758411075255,-400.0,0.00022738,2]
[386585264,1758411075264,-400.0,0.00022738,2]
[386585265,1758411075274,-400.0,0.00022738,2]
[386585266,1758411075284,-400.0,0.00022738,2]
[386585267,1758411075294,-456.7,0.00022738,2]
[386585268,1758411075303,-400.0,0.00022738,2]
[386585269,1758411075313,-400.0,0.00022738,2]
[386585270,1758411075323,-400.0,0.00022738,2]
[386585271,1758411075332,-400.0,0.00022738,2]
[386585272,1758411075342,-413.47,0.00022738,2]
[386585273,1758411075352,-1119.76,0.00022738,2]
[386585274,1758411075362,-400.0,0.00022738,2]
[386585275,1758411075371,-400.0,0.00022738,2]
[386585276,1758411075381,-1188.82,0.00022738,2]
[386585277,1758411075395,-400.0,0.00022738,2]
[386585278,1758411075404,-400.0,0.00022738,2]
[386585279,1758411075414,-468.42,0.00022738,2]
[386585280,1758411075424,-1123.48,0.00022738,2]
[386585281,1758411075433,-400.0,0.00022738,2]
[386585282,1758411075443,-400.0,0.00022738,2]
[386585283,1758411075454,-400.0,0.00022738,2]
[386585284,1758411075463,-536.52,0.00022738,2]
[386585285,1758411075473,-416.99,0.00022738,2]
[386585286,1758411075484,-400.0,0.00022738,2]
[386585287,1758411075495,-400.0,0.00022738,2]
[386585288,1758411075507,-1384.3,0.00022738,2]
[386585289,1758411075517,-400.0,0.00022738,2]
[386585290,1758411075527,-400.0,0.00022738,2]
[386585291,1758411075536,-400.0,0.00022738,2]
[386585292,1758411075546,-400.0,0.00022738,2]
[386585293,1758411075555,-400.0,0.00022738,2]
[386585294,1758411075565,-10663.12,0.00022738,2]
[386585295,1758411075575,-400.0,0.00022738,2]
[386585296,1758411075585,-400.0,0.00022738,2]
[386585297,1758411075594,-400.0,0.00022738,2]
[386585298,1758411075604,-400.0,0.00022738,2]
[386585299,1758411075614,-505.14,0.00022738,2]
[386585300,1758411075624,-941.59,0.00022738,2]
[386585301,1758411075634,-465.27,0.00022738,2]
[386585302,1758411075644,-488.79,0.00022738,2]
[386585303,1758411075654,-400.0,0.00022738,2]
[386585304,1758411075663,-400.0,0.00022738,2]
[386585305,1758411075673,-400.0,0.00022738,2]
[386585306,1758411075683,-400.0,0.00022738,2]
[386585307,1758411075693,-400.0,0.00022738,2]
[386585308,1758411075703,-400.0,0.00022738,2]
[386585309,1758411075713,-400.0,0.00022738,2]
[386585310,1758411075723,-400.0,0.00022738,2]
[386585311,1758411075733,-16865.07,0.00022738,2]
[386585312,1758411075742,-400.0,0.00022738,2]
[386585313,1758411075752,-848.28,0.00022738,2]
[386585314,1758411075762,-400.0,0.00022738,2]
[386585315,1758411075772,-979.23,0.00022738,2]
[386585316,1758411075782,-969.74,0.00022738,2]
[386585317,1758411075791,-400.0,0.00022738,2]
[386585318,1758411075802,-9878.67,0.00022738,2]
[386585319,1758411075812,-400.0,0.00022738,2]
[386585320,1758411075822,-400.0,0.00022738,2]
[386585321,1758411075832,-7127.75,0.00022738,2]
[386585322,1758411075843,-1625.56,0.00022738,2]
[386585323,1758411075854,-408.55592633,0.00022738,2]
[386585324,1758411075866,-5798.24,0.00022738,2]
[386585325,1758411075877,-400.0,0.00022738,2]
[386585326,1758411075887,-518.98,0.00022738,2]
[386585327,1758411075897,-400.0,0.00022738,2]
[386585328,1758411075906,-400.0,0.00022738,2]
[386585329,1758411075916,-400.0,0.00022738,2]
[386585330,1758411075927,-400.0,0.00022738,2]
[386585331,1758411075936,-3063.29,0.00022738,2]
[386585332,1758411075946,-3515.75,0.00022738,2]
[386585333,1758411075956,-400.0,0.00022738,2]
[386585334,1758411075966,-400.0,0.00022738,2]
[386585335,1758411075976,-414.27,0.00022738,2]
[386585336,1758411075986,-400.0,0.00022738,2]
[386585337,1758411075996,-400.0,0.00022738,2]
[386585338,1758411076006,-2824.3,0.00022738,2]
[386585339,1758411076018,-1003.21,0.00022738,2]
[386585340,1758411076028,-400.0,0.00022738,2]
[386585341,1758411076038,-400.0,0.00022738,2]
[386585342,1758411076048,-400.0,0.00022738,2]
[386585343,1758411076058,-670.93,0.00022738,2]
[386585344,1758411076070,-1643.08,0.00022738,2]
[386585345,1758411076081,-400.0,0.00022738,2]
[386585346,1758411076091,-546.38,0.00022738,2]
[386585347,1758411076102,-990.27,0.00022738,2]
[386585348,1758411076115,-400.0,0.00022738,2]
[386585349,1758411076127,-400.0,0.00022738,2]
[386585350,1758411076137,-400.0,0.00022738,2]
[386585351,1758411076147,-555.99,0.00022738,2]
[386585352,1758411076157,-2200.43,0.00022738,2]
[386585353,1758411076168,-400.0,0.00022738,2]
[386585354,1758411076179,-436.66,0.00022738,2]
[386585355,1758411076189,-400.0,0.00022738,2]
[386585356,1758411076201,-1703.48,0.00022738,2]
[386585357,1758411076211,-4525.56,0.00022738,2]
[386585358,1758411076220,-514.0346535,0.00022738,2]
[386585359,1758411076230,-443.92,0.00022738,2]
[386585361,1758411076240,-400.0,0.00022738,2]
[386585362,1758411076251,-4961.42,0.00022738,2]
[386585363,1758411076261,-400.0,0.00022738,2]
[386585365,1758411076272,-400.0,0.00022738,2]
[386585366,1758411076282,-400.0,0.00022738,2]
[386585367,1758411076294,-400.0,0.00022738,2]
[386585368,1758411076306,-400.0,0.00022738,2]
[386585369,1758411076317,-400.0,0.00022738,2]
[386585370,1758411076326,-532.24,0.00022738,2]
[386585371,1758411076336,-635.2,0.00022738,2]
[386585372,1758411076346,-919.96,0.00022738,2]
[386585373,1758411076357,-1866.94,0.00022738,2]
[386585374,1758411076367,-400.0,0.00022738,2]
[386585375,1758411076379,-400.0,0.00022738,2]
[386585376,1758411076389,-400.0,0.00022738,2]
[386585377,1758411076398,-400.0,0.00022738,2]
[386585378,1758411076408,-12330.36,0.00022738,2]
[386585379,1758411076418,-400.0,0.00022738,2]
[386585380,1758411076428,-1327.89,0.00022738,2]
[386585381,1758411076438,-400.0,0.00022738,2]
[386585382,1758411076448,-400.0,0.00022738,2]
[386585383,1758411076459,-417.15,0.00022738,2]